bitfinex/quotes_ETHUSD_20250623
["timestamp","ask_amount","ask_price","bid_price","bid_amount"]
[1750653037145,0.1032,2242.4,2242.0,0.0446006]
[1750653037439,1.905,2242.5,2242.0,6.01629612]
[1750653037606,1.9636,2242.5,2242.0,1.55600832]
[1750653037808,0.0586,2242.4,2242.0,1.55600832]
[1750653038256,0.1032,2242.6,2242.1,0.8133]
[1750653038402,0.0586,2242.6,2242.2,0.04459375]
[1750653038608,0.0586,2242.5,2242.2,0.04459375]
[1750653040269,0.0586,2242.5,2242.1,0.8133]
[1750653040571,0.0586,2242.4,2241.9,3.4700137]
[1750653040743,0.0586,2242.4,2242.0,0.79306347]
[1750653040935,0.0446,2242.5,2242.0,0.79306347]
[1750653041290,0.0586,2242.4,2242.0,0.79306347]
[1750653041573,0.0586,2242.4,2241.7,18.34826061]
[1750653041879,0.0586,2242.4,2241.8,0.04460218]
[1750653042229,1.9636,2242.4,2241.8,0.04460218]
[1750653042427,1.905,2242.4,2241.8,0.04460218]
[1750653043244,0.0446,2242.9,2241.9,12.32063946]
[1750653043448,0.0446,2242.7,2242.0,0.04460215]
[1750653043636,0.0618,2242.6,2241.9,7.86016713]
[1750653044471,0.0618,2242.6,2241.9,12.32064245]
[1750653044780,0.0618,2242.6,2242.0,1.30812701]
[1750653044963,0.0618,2242.6,2241.9,10.7734]
[1750653046684,0.0446,2242.5,2241.9,10.7734]
[1750653047350,0.0618,2242.4,2241.9,10.7734]
[1750653047977,0.0446,2242.5,2241.9,10.7734]
[1750653048185,0.0618,2242.6,2242.0,7.10146713]
[1750653048362,0.0618,2242.6,2242.1,4.46008581]
[1750653048563,10.0,2242.9,2242.1,4.46008581]
[1750653048564,0.1064,2242.9,2242.2,7.87796713]
[1750653048752,2.0114,2242.9,2242.3,0.04459422]
[1750653049192,2.0114,2242.9,2242.2,5.25101281]
[1750653049193,1.9496,2242.9,2242.2,5.25101281]
[1750653049498,0.0618,2242.8,2242.2,5.23631281]
[1750653049661,0.0618,2242.8,2242.2,7.14692566]
[1750653051010,0.0618,2242.8,2242.3,4.45967009]
[1750653051311,1.905,2242.9,2242.4,0.7763]
[1750653051486,0.0618,2242.8,2242.4,0.7763]
[1750653051808,0.0618,2242.8,2242.4,0.82089027]
[1750653052307,0.0618,2242.8,2242.4,0.7763]
[1750653052716,0.0618,2242.8,2242.4,0.82089025]
[1750653053014,0.0618,2242.8,2242.4,2.25015671]
[1750653053518,1.9668,2242.9,2242.4,6.70954181]
[1750653054308,2.0114,2243.2,2242.5,7.90156713]
[1750653054609,0.0618,2243.1,2242.7,5.2269115]
[1750653054809,1.905,2243.2,2242.7,0.7681]
[1750653055111,0.0618,2243.1,2242.7,0.7681]
[1750653055921,0.0618,2243.1,2242.7,1.22562071]
[1750653056127,3.89136,2243.2,2242.7,1.22562071]
[1750653056778,0.0618,2243.1,2242.7,1.22562071]
[1750653056979,0.0618,2243.1,2242.8,0.04458265]
[1750653062537,0.0618,2243.1,2242.7,1.22562071]
[1750653062743,1.902,2243.2,2242.7,1.22562071]
[1750653062950,0.0618,2243.1,2242.7,1.22562071]
[1750653063245,0.0446,2243.3,2242.7,3.50423138]
[1750653063446,0.0618,2243.1,2242.7,3.50423138]
[1750653063653,0.0618,2243.1,2242.7,0.45752071]
[1750653063957,0.0618,2243.1,2242.6,0.786]
[1750653064449,0.0618,2243.0,2242.6,10.786]
[1750653066361,1.902,2243.2,2242.6,10.786]
[1750653066673,1.902,2243.2,2242.6,0.786]
[1750653066674,0.0618,2243.1,2242.6,0.786]
[1750653066886,0.0618,2243.1,2242.6,2.45493897]
[1750653067033,1.902,2243.2,2242.6,2.45493897]
[1750653067361,0.0618,2243.1,2242.6,2.45493897]
[1750653069865,1.902,2243.2,2242.6,2.45493897]
[1750653070185,0.0618,2243.0,2242.4,0.786]
[1750653070385,0.0618,2242.8,2242.4,0.786]
[1750653071979,0.0618,2242.8,2242.4,5.24547482]
[1750653072141,0.0618,2242.8,2242.4,7.92615758]
[1750653072578,0.0446,2243.1,2242.4,3.46668276]
[1750653072868,0.0623,2242.9,2242.4,0.786]
[1750653073038,1.902,2242.8,2242.4,0.786]
[1750653073238,0.0623,2242.7,2242.4,0.786]
[1750653073635,0.0446,2243.1,2242.4,7.87276713]
[1750653073870,9.60649327,2243.0,2242.5,4.45921004]
[1750653074073,0.0623,2242.9,2242.5,4.45921004]
[1750653074365,0.0623,2242.9,2242.5,7.18443077]
[1750653074671,0.1069,2243.1,2242.5,7.18443077]
[1750653074873,10.7616,2243.4,2242.8,7.08676713]
[1750653075177,2.31918002,2243.3,2242.8,7.08676713]
[1750653075475,0.47948002,2243.2,2242.8,11.545447]
[1750653075779,0.47955932,2243.2,2242.8,13.22563915]
[1750653075946,0.47955932,2243.2,2242.8,6.13887202]
[1750653076146,0.41725932,2243.2,2242.9,0.04458061]
[1750653077955,0.47955932,2243.2,2242.8,1.68019215]
[1750653078155,0.41751061,2243.1,2242.8,1.68019215]
[1750653078383,0.47955932,2243.2,2242.8,1.68019215]
[1750653078546,0.41764759,2243.1,2242.9,0.73873191]
[1750653078747,0.41725932,2243.2,2243.0,0.785]
[1750653081460,0.47955932,2243.2,2243.0,0.785]
[1750653084508,2.38121941,2243.1,2242.5,3.11397888]
[1750653084641,0.0446,2242.9,2242.5,3.11397888]
[1750653084848,0.0623,2242.8,2242.5,3.11397888]
[1750653085766,0.0446,2242.9,2242.3,10.04459128]
[1750653085994,0.0623,2242.7,2242.3,10.0]
[1750653086978,0.0623,2242.7,2242.3,14.45967004]
[1750653087299,0.0623,2242.9,2242.5,0.7655]
[1750653087812,0.0623,2242.9,2242.5,5.22464416]
[1750653088014,0.0623,2242.9,2242.6,0.04458639]
[1750653088163,1.9,2243.0,2242.5,0.7655]
[1750653088367,0.48012224,2242.9,2242.5,0.7655]
[1750653088613,0.0623,2242.9,2242.6,1.45441842]
[1750653088904,0.0623,2242.9,2242.5,0.7655]
[1750653090508,0.0623,2242.9,2242.4,2.23250372]
[1750653093510,1.9,2243.0,2242.4,2.23250372]
[1750653093715,0.41771818,2242.9,2242.4,2.23250372]
[1750653094010,0.0623,2242.8,2242.4,2.23250372]
[1750653094207,0.0623,2242.8,2242.5,11.74864057]
[1750653094603,1.9,2243.0,2242.5,11.74864057]
[1750653094804,0.0623,2242.9,2242.5,11.74864057]
[1750653095297,1.9623,2243.0,2242.5,11.74864057]
[1750653095505,0.41763145,2242.9,2242.5,11.76334057]
[1750653095680,1.9623,2243.0,2242.6,2.15284744]
[1750653096012,0.41762559,2242.9,2242.6,2.15284744]
[1750653096176,1.9623,2243.0,2242.6,2.10826114]
[1750653096376,0.41756743,2242.9,2242.6,2.10826114]
[1750653096678,0.0623,2242.9,2242.6,2.10826114]
[1750653098202,1.9,2243.0,2242.5,10.0]
[1750653098515,0.0623,2242.8,2242.5,10.0]
[1750653098884,0.0623,2242.9,2242.5,10.0]
[1750653099387,0.0446,2243.1,2242.6,0.04458627]
[1750653099587,1.9446,2243.1,2242.7,10.0]
[1750653099793,0.47981282,2243.0,2242.7,10.0]
[1750653100014,1.9446,2243.1,2242.7,10.0]
[1750653100327,0.4798136,2243.0,2242.7,10.0]
[1750653100536,0.0623,2243.0,2242.7,10.0]
[1750653100698,0.0623,2243.0,2242.5,10.0]
[1750653100900,0.41757071,2242.9,2242.3,10.0]
[1750653101099,0.0623,2242.9,2242.3,10.0]
[1750653101300,0.0623,2242.9,2242.3,21.54646327]
[1750653101500,0.0623,2242.9,2242.4,0.05928886]
[1750653101830,0.0623,2242.9,2242.4,0.0147]
[1750653102244,0.0623,2242.9,2242.5,10.0]
[1750653102635,0.06,2242.9,2242.5,10.0]
[1750653102832,0.46220956,2242.8,2242.2,10.8029]
[1750653103138,0.06,2242.7,2242.2,0.8029]
[1750653103323,0.0446,2242.8,2242.2,3.03934567]
[1750653103495,0.06,2242.7,2242.3,10.0]
[1750653104743,0.0446,2242.8,2242.3,10.0]
[1750653104925,0.06,2242.7,2242.3,10.0]
[1750653106334,0.06,2242.7,2242.3,14.45968935]
[1750653106543,0.06,2242.7,2242.4,2.46005021]
[1750653107336,0.0446,2243.0,2242.5,10.0]
[1750653107551,2.31757178,2242.9,2242.6,7.08676713]
[1750653107869,1.9,2242.9,2242.6,7.08676713]
[1750653108078,0.1046,2243.0,2242.6,7.08676713]
[1750653108552,0.4175532,2242.9,2242.6,7.08676713]
[1750653108752,0.0446,2243.0,2242.7,10.0]
[1750653109134,0.1046,2243.0,2242.7,10.0]
[1750653110552,0.06,2243.0,2242.7,10.0]
[1750653111460,0.06,2243.0,2242.7,10.43641704]
[1750653113162,0.47772879,2242.9,2242.7,10.43641704]
[1750653113363,0.06,2242.9,2242.7,10.43641704]
[1750653113558,3.24048,2243.1,2242.7,10.43641704]
[1750653113858,0.78800467,2243.0,2242.7,0.43641704]
[1750653114031,0.41777074,2242.9,2242.5,0.8279]
[1750653114352,3.24048,2243.1,2242.5,0.8279]
[1750653114353,0.41817115,2242.8,2242.5,0.8279]
[1750653114560,0.06,2242.8,2242.5,0.8279]
[1750653116684,0.0446,2243.0,2242.4,10.0]
[1750653116833,0.47820294,2242.9,2242.3,10.0]
[1750653117032,0.06,2242.7,2242.2,2.23644567]
[1750653117334,0.06,2242.4,2242.1,10.0]
[1750653117534,0.1046,2242.5,2242.1,10.0]
[1750653117769,0.06,2242.7,2242.3,10.0]
[1750653117968,0.41824895,2242.6,2242.3,10.0]
[1750653118265,0.06,2242.6,2242.3,10.0]
[1750653120328,0.1046,2242.8,2242.4,7.08676713]
[1750653120534,2.3161157,2242.7,2242.4,7.91906713]
[1750653120832,1.898,2242.7,2242.4,7.91906713]
[1750653121255,0.1046,2242.8,2242.4,7.91906713]
[1750653121452,0.4780846,2242.7,2242.4,10.0]
[1750653121651,0.41809013,2242.6,2242.4,10.0]
[1750653121874,0.06,2242.7,2242.4,10.0]
[1750653124783,0.0446,2242.8,2242.4,10.0]
[1750653124977,0.06,2242.6,2242.4,10.0]
[1750653126090,0.06,2242.6,2242.4,12.00579167]
[1750653126388,0.06,2242.7,2242.4,12.00579167]
[1750653126796,0.0446,2242.8,2242.4,10.0]
[1750653126999,0.41796957,2242.7,2242.4,10.0]
[1750653127160,0.06,2242.7,2242.4,10.0]
[1750653127959,0.0446,2242.8,2242.4,10.0]
[1750653128460,0.41791543,2242.7,2242.4,10.0]
[1750653128662,0.06,2242.7,2242.4,10.0]
[1750653128992,0.06,2242.7,2242.1,10.0]
[1750653129306,0.1046,2242.5,2242.1,10.0]
[1750653129461,0.1046,2242.5,2242.1,13.23369598]
[1750653129876,0.06,2242.4,2242.1,13.23369598]
[1750653130092,0.0446,2242.5,2242.1,13.23369598]
[1750653130293,0.06,2242.4,2242.1,13.23369598]
[1750653130664,0.0446,2242.5,2242.1,13.23369598]
[1750653131264,0.06,2242.4,2242.0,0.7897]
[1750653131462,0.0446,2242.5,2242.0,0.7897]
[1750653131989,0.06,2242.4,2242.0,0.7897]
[1750653132364,0.06,2242.4,2242.0,7.87646713]
[1750653132565,0.06,2242.4,2242.1,10.0]
[1750653135091,0.0586,2242.4,2242.1,10.0]
[1750653135493,0.0446,2242.5,2242.1,10.0]
[1750653136065,0.0586,2242.4,2242.1,10.0]
[1750653136365,0.0586,2242.4,2241.9,10.0]
[1750653136564,1.898,2242.6,2241.6,9.75186713]
[1750653136565,0.0446,2242.3,2241.6,9.75186713]
[1750653136765,0.0586,2242.2,2241.7,10.0]
[1750653137310,1.9426,2242.1,2241.6,12.21118928]
[1750653137594,0.0586,2242.0,2241.6,12.21118928]
[1750653138299,0.0586,2242.0,2241.6,10.0]
[1750653138504,0.0446,2241.9,2241.5,0.44075818]
[1750653138799,0.0446,2241.9,2241.4,10.0]
[1750653139001,0.0586,2241.8,2241.4,10.0]
[1750653139206,0.0446,2241.9,2241.6,10.0]
[1750653139405,0.1032,2241.9,2241.6,10.0]
[1750653140469,1.9576,2242.0,2241.6,10.0]
[1750653140674,2.0022,2242.0,2241.6,10.0]
[1750653141071,0.0586,2241.9,2241.6,10.0]
[1750653141685,1.9436,2242.0,2241.6,10.0]
[1750653141871,0.0586,2241.9,2241.6,10.0]
[1750653142070,1.9436,2242.0,2241.5,2.15484285]
[1750653142302,1.9436,2242.0,2241.4,10.44467761]
[1750653142303,0.0446,2241.8,2241.4,0.44467761]
[1750653142473,0.0586,2241.7,2241.3,0.7628]
[1750653142669,0.0586,2241.7,2241.3,10.7628]
[1750653142889,0.0586,2241.7,2241.3,10.0]
[1750653143096,0.0586,2241.7,2241.3,10.45400963]
[1750653143600,0.0586,2241.7,2241.3,13.45423779]
[1750653144209,0.0586,2241.7,2241.4,7.08676713]
[1750653144403,0.0446,2241.8,2241.4,7.08676713]
[1750653144606,0.0586,2241.9,2241.4,22.37384779]
[1750653144814,0.0586,2241.9,2241.6,7.08676713]
[1750653145712,1.9436,2242.0,2241.4,17.89766713]
[1750653145911,1.9436,2242.0,2241.4,21.48049016]
[1750653146113,0.0586,2241.9,2241.4,21.48049016]
[1750653146309,0.0586,2241.9,2241.4,20.66959016]
[1750653146478,0.0586,2241.9,2241.4,10.0]
[1750653146679,0.0586,2241.9,2241.3,3.45423779]
[1750653146880,0.0586,2241.7,2241.3,0.45400963]
[1750653147081,0.0586,2241.7,2241.2,22.35954543]
[1750653147383,0.0586,2241.7,2241.2,17.89766713]
[1750653148282,0.0586,2241.7,2241.2,17.08676713]
[1750653149016,0.0446,2241.8,2241.2,17.08676713]
[1750653149443,0.0446,2241.6,2241.1,10.0]
[1750653149740,0.0586,2241.5,2241.1,10.0]
[1750653150289,0.0446,2241.6,2241.1,10.0]
[1750653151296,0.0586,2241.5,2241.1,10.0]
[1750653151719,0.0586,2241.5,2240.9,11.896]
[1750653152035,0.0586,2241.3,2240.9,14.65666327]
[1750653152189,0.0586,2241.3,2240.9,12.76066327]
[1750653152521,0.0586,2241.3,2240.9,13.20589887]
[1750653153430,0.0586,2241.3,2240.9,0.4452356]
[1750653153624,0.1032,2241.2,2240.8,4.46266476]
[1750653153924,0.1032,2241.2,2240.7,14.47748906]
[1750653154222,0.1032,2241.2,2240.7,10.0147]
[1750653154526,0.0586,2241.1,2240.7,10.0]
[1750653154710,0.0586,2241.1,2240.7,12.4271369]
[1750653156226,0.0586,2241.1,2240.7,12.86501416]
[1750653156413,0.0586,2241.1,2240.7,17.32790113]
[1750653156813,0.1032,2241.4,2241.1,10.0]
[1750653156989,0.0586,2241.3,2241.1,10.0]
[1750653158100,1.9406,2241.4,2240.9,10.0]
[1750653158306,0.0586,2241.3,2240.9,10.0]
[1750653158617,0.0446,2241.2,2240.9,10.0]
[1750653158811,0.0586,2241.1,2240.9,10.0]
[1750653159313,0.0446,2241.2,2240.9,10.0]
[1750653159517,0.0586,2241.1,2240.9,10.0]
[1750653160394,0.1032,2241.2,2240.9,10.0]
[1750653161133,0.0586,2241.1,2240.9,10.0]
[1750653161728,0.0586,2241.1,2240.7,2.86501416]
[1750653162094,0.0446,2241.2,2240.7,2.86501416]
[1750653162605,0.0575,2241.1,2240.7,0.43787726]
[1750653162803,0.0575,2241.1,2240.5,10.0]
[1750653163338,0.0446,2241.0,2240.5,10.0]
[1750653163545,0.0575,2240.9,2240.5,10.0]
[1750653163719,0.0446,2241.0,2240.5,10.0]
[1750653163914,0.0575,2240.9,2240.5,10.0]
[1750653164431,0.0575,2240.7,2240.5,0.44345758]
[1750653164736,0.0575,2240.7,2240.3,10.0]
[1750653165446,0.0446,2240.6,2240.3,10.0]
[1750653165757,0.0446,2240.6,2240.3,11.92084135]
[1750653165912,0.0446,2240.8,2240.3,11.92084135]
[1750653166111,0.0575,2240.7,2240.3,11.92084135]
[1750653167551,1.897,2240.8,2240.5,10.0147]
[1750653167747,1.897,2240.8,2240.5,10.0]
[1750653168108,0.0446,2240.7,2240.3,0.8303]
[1750653168321,0.1021,2240.7,2240.3,3.84228549]
[1750653168507,0.1021,2240.7,2240.4,7.08676713]
[1750653168708,0.1021,2240.7,2240.5,10.0]
[1750653171144,0.1021,2240.7,2240.3,3.01198549]
[1750653171314,0.0575,2240.6,2240.3,3.01198549]
[1750653172446,0.0446,2240.5,2240.3,0.4400175]
[1750653172655,0.0575,2240.4,2240.0,27.30647873]
[1750653172947,0.1021,2240.5,2240.1,10.0]
[1750653174430,0.1021,2240.5,2240.1,10.44128752]
[1750653175015,0.1021,2240.5,2240.2,7.08676713]
[1750653175217,0.1021,2240.5,2240.2,9.33815685]
[1750653175448,1.897,2240.9,2240.2,9.33815685]
[1750653175449,0.0446,2240.8,2240.4,7.08676713]
[1750653175646,0.0446,2240.8,2240.6,7.08676713]
[1750653175859,0.0446,2241.0,2240.6,7.08676713]
[1750653176720,0.0446,2241.0,2240.6,7.10146713]
[1750653176931,0.0446,2241.0,2240.6,7.89430651]
[1750653177332,0.0446,2241.2,2240.8,7.08676713]
[1750653177725,1.9971,2241.4,2241.0,7.08676713]
[1750653177954,0.41647046,2241.3,2241.0,7.08676713]
[1750653178159,1.9971,2241.4,2241.0,7.08676713]
[1750653178360,0.41680335,2241.3,2241.0,7.08676713]
[1750653178677,1.9971,2241.4,2241.0,7.08676713]
[1750653178882,0.41680042,2241.3,2241.2,7.08676713]
[1750653179090,1.895,2241.5,2241.2,7.08676713]
[1750653179240,0.41677647,2241.4,2241.2,7.08676713]
[1750653179440,1.895,2241.5,2241.2,7.08676713]
[1750653179657,0.41677217,2241.4,2241.2,7.08676713]
[1750653179885,1.895,2241.5,2241.0,10.79110671]
[1750653180081,0.4167799,2241.4,2241.0,10.79110671]
[1750653180241,1.9525,2241.5,2241.0,10.79110671]
[1750653180770,1.9525,2241.5,2241.0,10.0]
[1750653180974,0.0446,2241.6,2241.2,10.0]
[1750653181139,1.894,2241.6,2241.3,7.08676713]
[1750653182988,1.9961,2241.8,2241.3,7.08676713]
[1750653183143,0.41683466,2241.7,2241.3,7.08676713]
[1750653183343,1.9961,2241.8,2241.3,7.08676713]
[1750653183573,0.41684346,2241.7,2241.3,7.08676713]
[1750653183881,0.0575,2241.7,2241.3,7.08676713]
[1750653184380,0.0575,2241.7,2241.3,7.53718175]
[1750653184582,0.0575,2241.7,2241.3,9.37526993]
[1750653185474,1.9386,2241.8,2241.3,9.37526993]
[1750653185666,0.47429325,2241.7,2241.3,7.53718175]
[1750653185860,0.0575,2241.7,2241.3,7.53718175]
[1750653189684,0.0575,2241.7,2241.3,0.45041462]
[1750653189867,0.0575,2241.7,2241.2,0.829]
[1750653191989,0.0575,2241.7,2241.2,0.8736134]
[1750653192190,0.0575,2241.7,2241.3,11.79750805]
[1750653192998,1.9505,2241.8,2241.3,19.34049324]
[1750653194369,0.0446,2241.9,2241.5,7.08676713]
[1750653194569,0.0446,2242.1,2241.5,7.86636713]
[1750653194892,2.31038363,2242.0,2241.5,7.86636713]
[1750653195092,0.47283971,2241.9,2241.5,7.86636713]
[1750653195297,0.0565,2241.9,2241.5,7.86636713]
[1750653195878,2.12949836,2242.0,2241.5,7.86636713]
[1750653196077,0.0565,2241.8,2241.5,7.86636713]
[1750653197298,0.0565,2241.9,2241.5,0.7796]
[1750653198579,2.12949836,2242.0,2241.5,0.7796]
[1750653198785,0.4163085,2241.9,2241.5,0.7796]
[1750653198985,2.12949836,2242.0,2241.5,0.7796]
[1750653199319,0.0565,2241.8,2241.3,8.33938519]
[1750653199482,0.0565,2241.8,2241.3,9.17479371]
[1750653199682,0.0565,2241.9,2241.3,9.17479371]
[1750653200312,0.0446,2241.8,2241.4,10.0]
[1750653200483,0.0565,2241.7,2241.4,10.0]
[1750653201683,0.0446,2241.8,2241.4,10.0]
[1750653201878,0.0565,2241.7,2241.4,10.0]
[1750653202416,0.0446,2241.8,2241.4,10.0]
[1750653203009,0.473521,2241.7,2241.4,10.0]
[1750653203314,0.0565,2241.6,2241.4,10.0]
[1750653204291,0.0446,2241.8,2241.4,10.0]
[1750653204684,0.41702791,2241.7,2241.4,10.0]
[1750653204988,0.0565,2241.7,2241.4,10.0]
[1750653205207,0.41802707,2241.6,2241.4,10.0]
[1750653205413,0.47452707,2241.5,2241.4,10.0]
[1750653205921,0.47452707,2241.5,2241.3,0.44151806]
[1750653205922,0.51912707,2241.5,2241.3,0.44151806]
[1750653206117,0.51912707,2241.5,2240.1,0.44128752]
[1750653206118,0.0446,2241.0,2240.1,0.44128752]
[1750653206323,2.30902707,2240.9,2240.3,7.08676713]
[1750653206524,2.30902707,2240.9,2240.1,2.15384991]
[1750653206525,2.30923579,2240.8,2240.6,0.0604]
[1750653206814,0.41823579,2240.7,2240.6,0.0604]
[1750653207202,0.41823579,2240.7,2240.5,0.0604]
[1750653207402,1.891,2240.8,2240.5,0.44139588]
[1750653207606,1.891,2240.8,2240.4,0.8171]
[1750653207798,0.0565,2240.7,2240.2,10.8775]
[1750653208202,0.0565,2240.6,2240.2,0.8775]
[1750653208395,0.0565,2240.6,2240.0,20.2197116]
[1750653208594,0.0446,2240.7,2240.1,10.0]
[1750653209003,0.0565,2240.6,2240.1,10.0]
[1750653209416,0.1011,2240.7,2240.1,10.0]
[1750653209724,0.0565,2240.6,2240.1,10.0]
[1750653210317,0.0565,2240.6,2240.1,0.44237864]
[1750653210508,0.0565,2240.6,2240.1,10.0]
[1750653211788,0.0565,2240.6,2240.0,20.2197116]
[1750653212093,0.0565,2240.4,2240.0,20.2197116]
[1750653212326,1.892,2240.3,2240.0,20.2197116]
[1750653213151,1.892,2240.2,2240.1,0.7611]
[1750653213342,1.892,2240.2,2240.1,0.8215]
[1750653213849,0.0446,2240.5,2240.1,0.7611]
[1750653214076,1.892,2240.3,2240.2,0.0604]
[1750653215235,0.1011,2240.7,2240.2,0.0604]
[1750653215556,9.1805,2240.6,2240.2,0.0604]
[1750653215756,0.92251,2240.5,2240.2,0.0604]
[1750653216059,1.892,2240.4,2240.2,0.0604]
[1750653216959,0.0565,2240.6,2240.2,0.0604]
[1750653217155,1.892,2240.5,2240.2,0.0604]
[1750653218629,0.0565,2240.6,2240.2,0.0604]
[1750653218932,1.892,2240.5,2240.2,0.0604]
[1750653220357,1.9485,2240.5,2240.1,0.8215]
[1750653221227,1.892,2240.4,2240.1,0.8215]
[1750653221637,0.0446,2240.7,2240.1,10.7611]
[1750653221844,1.892,2240.6,2240.2,7.08676713]
[1750653222028,1.892,2240.6,2240.3,0.0604]
[1750653224053,0.1044,2240.9,2240.2,7.14566713]
[1750653224277,1.9518,2240.8,2240.3,0.84957671]
[1750653224578,1.9518,2240.8,2240.3,0.0589]
[1750653224949,1.892,2240.7,2240.3,0.0589]
[1750653225151,0.1044,2240.9,2240.4,0.826]
[1750653225350,1.892,2240.7,2240.4,0.8849]
[1750653225543,0.0446,2240.9,2240.4,0.8849]
[1750653225751,1.892,2240.7,2240.4,0.8849]
[1750653227370,0.1044,2240.9,2240.1,10.0]
[1750653227371,0.0598,2240.8,2240.1,10.0]
[1750653227670,1.892,2240.7,2240.3,0.7804]
[1750653227870,1.892,2240.7,2240.4,0.0589]
[1750653230986,0.1044,2240.9,2240.3,7.86716713]
[1750653230987,10.7666,2241.2,2240.5,7.90686713]
[1750653231278,10.7666,2241.2,2240.7,0.0589]
[1750653231279,1.892,2240.9,2240.7,0.0589]
[1750653231454,1.892,2240.9,2240.5,7.90686713]
[1750653231798,1.892,2240.9,2240.6,0.0589]
[1750653231980,1.892,2241.0,2240.6,10.04462765]
[1750653232150,1.892,2241.0,2240.8,0.0589]
[1750653232493,1.892,2241.0,2240.7,0.873]
[1750653233878,1.892,2241.0,2240.7,7.95976713]
[1750653234080,1.892,2241.0,2240.7,7.90086713]
[1750653234282,0.1044,2241.4,2240.9,7.14566713]
[1750653234486,1.892,2241.7,2241.2,7.87016713]
[1750653234687,1.892,2241.7,2241.4,7.08676713]
[1750653234981,1.892,2241.7,2241.3,10.0]
[1750653235188,1.9518,2241.7,2241.3,10.0589]
[1750653235484,1.892,2241.7,2241.3,10.0]
[1750653235684,0.0598,2241.5,2240.9,10.0589]
[1750653235853,0.0598,2241.5,2241.0,3.23716671]
[1750653236051,0.0446,2241.5,2241.0,0.8585]
[1750653236257,0.0598,2241.4,2241.0,0.8585]
[1750653238318,0.0598,2241.4,2241.0,7.94526713]
[1750653238794,0.0598,2241.4,2241.1,10.0]
[1750653239610,0.0446,2241.5,2241.1,10.0]
[1750653239776,0.1044,2241.5,2241.1,10.0]
[1750653240172,1.892,2241.7,2241.3,10.0]
[1750653240410,1.892,2241.7,2241.4,0.7996]
[1750653240569,1.9518,2241.7,2241.4,0.7996]
[1750653240777,1.892,2241.7,2241.4,0.7996]
[1750653241511,1.892,2241.7,2241.4,0.8585]
[1750653242207,1.899,2241.7,2241.4,0.8585]
[1750653243187,1.899,2241.7,2241.4,1.31249512]
[1750653243810,1.899,2241.8,2241.4,1.31249512]
[1750653244009,1.9588,2241.8,2241.4,1.31249512]
[1750653244713,10.7706,2242.1,2241.7,10.0]
[1750653244894,12.7294,2242.1,2241.7,10.0589]
[1750653246879,12.7294,2242.1,2241.7,10.0]
[1750653247077,0.0598,2242.0,2241.7,10.0]
[1750653248693,0.0598,2242.6,2241.8,7.91466713]
[1750653248891,0.0598,2242.1,2241.8,7.91466713]
[1750653249091,1.9578,2242.1,2241.8,0.8279]
[1750653249721,1.898,2242.1,2241.7,10.0]
[1750653250024,0.0598,2242.0,2241.7,10.0]
[1750653253236,0.0598,2242.0,2241.7,11.78977671]
[1750653254347,0.0611,2241.9,2241.4,11.25889512]
[1750653255001,0.0446,2242.0,2241.4,11.25889512]
[1750653255917,0.0611,2241.9,2241.4,0.45399512]
[1750653256122,0.0446,2241.8,2241.2,0.7776]
[1750653257031,0.0611,2241.7,2241.3,10.0]
[1750653257211,1.898,2241.6,2241.3,10.0]
[1750653257604,1.9591,2241.6,2241.3,10.0]
[1750653257934,0.0611,2241.5,2241.3,10.0]
[1750653258358,1.9591,2241.6,2241.3,10.0]
[1750653261354,1.898,2241.6,2241.3,7.14386713]
[1750653262245,1.898,2241.5,2241.3,7.14386713]
[1750653262548,1.898,2241.5,2241.3,7.9819064]
[1750653263252,1.898,2241.5,2241.3,7.14386713]
[1750653265676,0.0446,2241.7,2241.3,7.14386713]
[1750653265893,2.31577218,2241.6,2241.3,7.08676713]
[1750653266163,0.41777218,2241.5,2241.4,0.0571]
[1750653266367,0.41777218,2241.5,2241.3,7.14386713]
[1750653266569,1.892,2241.6,2241.3,7.14386713]
[1750653266867,0.41776745,2241.5,2241.3,7.14386713]
[1750653267171,1.892,2241.6,2241.4,0.0571]
[1750653267371,0.41780449,2241.5,2241.4,0.0571]
[1750653267739,0.0611,2241.8,2241.4,0.0571]
[1750653268074,2.30981322,2241.7,2241.4,0.0571]
[1750653268280,0.41781322,2241.6,2241.4,0.0571]
[1750653268441,0.41781322,2241.5,2241.4,0.0571]
[1750653269285,0.41781322,2241.5,2241.3,7.08676713]
[1750653269449,1.892,2241.6,2241.3,7.08676713]
[1750653269650,0.4178319,2241.5,2241.3,7.08676713]
[1750653269981,1.892,2241.6,2241.3,7.08676713]
[1750653270181,0.41787993,2241.5,2241.3,7.08676713]
[1750653270381,1.892,2241.6,2241.3,7.08676713]
[1750653270581,0.41788105,2241.5,2241.3,7.08676713]
[1750653270877,1.892,2241.6,2241.4,0.0571]
[1750653271051,0.0446,2241.9,2241.4,0.0571]
[1750653271248,2.30988062,2241.8,2241.4,0.0571]
[1750653271444,1.9531,2241.8,2241.4,0.0571]
[1750653271659,0.41788118,2241.7,2241.4,0.0571]
[1750653271878,0.41788118,2241.6,2241.4,0.0571]
[1750653272186,0.41788118,2241.5,2241.4,0.0571]
[1750653273261,0.41788118,2241.5,2241.3,7.14386713]
[1750653273505,0.41787014,2241.4,2241.3,17.14386713]
[1750653273690,0.0611,2241.7,2241.3,17.14386713]
[1750653273989,0.41786603,2241.6,2241.3,17.14386713]
[1750653274191,1.892,2241.8,2241.3,10.0]
[1750653274491,0.0611,2241.6,2241.3,10.0]
[1750653274692,0.41787238,2241.5,2241.3,10.0]
[1750653274871,0.0611,2241.6,2241.3,10.0]